[Event "Late-Titled-Tuesday-Blitz-April-02-2024"]
[Site "Chess.com"]
[Date "2024.04.02"]
[Round "6"]
[White "Koksal06"]
[Black "Narek_Ghimoyan"]
[Result "1-0"]
[WhiteElo "2650"]
[BlackElo "2472"]
[TimeControl "180+1"]
[EndTime "15:04:55 PDT"]
[Termination "Koksal06 won by checkmate"]

1. c4 {[%clk 0:02:59.4]} 1... e6 {[%clk 0:02:59.4]} 2. Nc3 {[%clk 0:02:59.5]}
2... d5 {[%clk 0:02:59.9]} 3. d4 {[%clk 0:03:00.1]} 3... Nf6 {[%clk 0:02:59.9]}
4. Nf3 {[%clk 0:03:00.7]} 4... Be7 {[%clk 0:02:58.6]} 5. Bf4 {[%clk 0:03:00.7]}
5... O-O {[%clk 0:02:57]} 6. e3 {[%clk 0:03:01.2]} 6... b6 {[%clk 0:02:52.4]} 7.
Rc1 {[%clk 0:02:59.4]} 7... dxc4 {[%clk 0:02:51.8]} 8. Bxc4 {[%clk 0:02:59.3]}
8... Ba6 {[%clk 0:02:52.5]} 9. Bxa6 {[%clk 0:02:57.5]} 9... Nxa6 {[%clk
0:02:53.4]} 10. O-O {[%clk 0:02:57.1]} 10... c5 {[%clk 0:02:53.1]} 11. Qa4
{[%clk 0:02:47.5]} 11... Qc8 {[%clk 0:02:41.1]} 12. Bg5 {[%clk 0:02:28.3]} 12...
Qb7 {[%clk 0:02:38.6]} 13. Rfd1 {[%clk 0:02:10.5]} 13... h6 {[%clk 0:02:37.3]}
14. Bh4 {[%clk 0:01:55]} 14... Rfd8 {[%clk 0:02:33.7]} 15. Nb5 {[%clk
0:01:37.2]} 15... cxd4 {[%clk 0:02:29]} 16. Nbxd4 {[%clk 0:01:24]} 16... Nc5
{[%clk 0:02:27.7]} 17. Qc6 {[%clk 0:01:23.7]} 17... Qxc6 {[%clk 0:02:19.2]} 18.
Nxc6 {[%clk 0:01:23.7]} 18... Rxd1+ {[%clk 0:02:20.1]} 19. Rxd1 {[%clk
0:01:23.6]} 19... Kf8 {[%clk 0:02:21]} 20. Nfe5 {[%clk 0:01:16.3]} 20... Ke8
{[%clk 0:02:17.6]} 21. b4 {[%clk 0:01:11]} 21... Nce4 {[%clk 0:02:14.2]} 22.
Nxe7 {[%clk 0:00:55.1]} 22... Kxe7 {[%clk 0:02:08.7]} 23. Rd7+ {[%clk
0:00:55.1]} 23... Ke8 {[%clk 0:02:09.6]} 24. Rxf7 {[%clk 0:00:39.2]} 24... Rc8
{[%clk 0:02:05.3]} 25. h3 {[%clk 0:00:38.8]} 25... Rc1+ {[%clk 0:02:02.8]} 26.
Kh2 {[%clk 0:00:39]} 26... g5 {[%clk 0:02:02.4]} 27. Bg3 {[%clk 0:00:19.9]}
27... Nxg3 {[%clk 0:02:01.6]} 28. Kxg3 {[%clk 0:00:13.7]} 28... Ne4+ {[%clk
0:02:01.2]} 29. Kf3 {[%clk 0:00:12.2]} 29... Nd2+ {[%clk 0:02:01]} 30. Ke2
{[%clk 0:00:12.5]} 30... Rc2 {[%clk 0:02:00.8]} 31. Kd3 {[%clk 0:00:11.1]} 31...
Rxa2 {[%clk 0:02:00.3]} 32. Rh7 {[%clk 0:00:10.2]} 32... Nb3 {[%clk 0:01:55.6]}
33. Ng4 {[%clk 0:00:10.4]} 33... a5 {[%clk 0:01:52.2]} 34. bxa5 {[%clk
0:00:11.3]} 34... bxa5 {[%clk 0:01:53]} 35. Rxh6 {[%clk 0:00:11.2]} 35... Kd8
{[%clk 0:01:46.6]} 36. Rh8+ {[%clk 0:00:10]} 36... Ke7 {[%clk 0:01:46.2]} 37.
Rb8 {[%clk 0:00:10]} 37... a4 {[%clk 0:01:45.6]} 38. g3 {[%clk 0:00:09.2]} 38...
Nc5+ {[%clk 0:01:42.8]} 39. Kc4 {[%clk 0:00:09.4]} 39... Nd7 {[%clk 0:01:42.5]}
40. Rb7 {[%clk 0:00:08.6]} 40... Kd6 {[%clk 0:01:40.8]} 41. Ra7 {[%clk
0:00:08.3]} 41... Nc5 {[%clk 0:01:37.2]} 42. Ra5 {[%clk 0:00:06]} 42... Rc2+
{[%clk 0:01:35.1]} 43. Kb4 {[%clk 0:00:06.4]} 43... Nd3+ {[%clk 0:01:32.1]} 44.
Kxa4 {[%clk 0:00:06.3]} 44... Nxf2 {[%clk 0:01:32.1]} 45. Rxg5 {[%clk
0:00:05.4]} 45... Nxg4 {[%clk 0:01:20.8]} 46. Rxg4 {[%clk 0:00:05.6]} 46... Re2
{[%clk 0:01:20.3]} 47. e4 {[%clk 0:00:05.9]} 47... Ke5 {[%clk 0:01:16.2]} 48.
Kb4 {[%clk 0:00:06]} 48... Rc2 {[%clk 0:01:15.4]} 49. Kb3 {[%clk 0:00:06]} 49...
Rc8 {[%clk 0:01:14.4]} 50. h4 {[%clk 0:00:06.3]} 50... Kd4 {[%clk 0:01:14.4]}
51. h5 {[%clk 0:00:06.2]} 51... Kd3 {[%clk 0:01:13.7]} 52. Kb4 {[%clk
0:00:06.1]} 52... Kd4 {[%clk 0:01:13.3]} 53. Kb5 {[%clk 0:00:06.7]} 53... e5
{[%clk 0:01:13.6]} 54. h6 {[%clk 0:00:06.2]} 54... Rh8 {[%clk 0:01:09.9]} 55.
Rh4 {[%clk 0:00:06.5]} 55... Ke3 {[%clk 0:01:10.1]} 56. Kc5 {[%clk 0:00:06.2]}
56... Kf3 {[%clk 0:01:10.4]} 57. Kd5 {[%clk 0:00:06.8]} 57... Kxg3 {[%clk
0:01:10.1]} 58. Rh5 {[%clk 0:00:07.1]} 58... Kf4 {[%clk 0:01:10.2]} 59. Rf5+
{[%clk 0:00:07.1]} 59... Kg4 {[%clk 0:01:09.9]} 60. Rf6 {[%clk 0:00:07.5]} 60...
Kg5 {[%clk 0:01:09.7]} 61. Kxe5 {[%clk 0:00:08]} 61... Ra8 {[%clk 0:01:06]} 62.
Rd6 {[%clk 0:00:08]} 62... Ra5+ {[%clk 0:01:05.1]} 63. Ke6 {[%clk 0:00:08.3]}
63... Kxh6 {[%clk 0:01:04.6]} 64. e5 {[%clk 0:00:07.7]} 64... Kg7 {[%clk
0:01:04.4]} 65. Rd8 {[%clk 0:00:07.7]} 65... Ra1 {[%clk 0:00:54.1]} 66. Kd6
{[%clk 0:00:07.4]} 66... Ra6+ {[%clk 0:00:46.7]} 67. Ke7 {[%clk 0:00:07.4]}
67... Ra1 {[%clk 0:00:41.6]} 68. e6 {[%clk 0:00:07.7]} 68... Re1 {[%clk
0:00:39.5]} 69. Rd2 {[%clk 0:00:07.4]} 69... Ra1 {[%clk 0:00:37.7]} 70. Rg2+
{[%clk 0:00:07.6]} 70... Kh7 {[%clk 0:00:37.7]} 71. Ke8 {[%clk 0:00:06.9]} 71...
Ra8+ {[%clk 0:00:36.6]} 72. Kf7 {[%clk 0:00:06.8]} 72... Ra1 {[%clk 0:00:33.5]}
73. Rh2# {[%clk 0:00:06.8]} 1-0

[Event "Late-Titled-Tuesday-Blitz-April-02-2024"]
[Site "Chess.com"]
[Date "2024.04.02"]
[Round "6"]
[White "DrVelja"]
[Black "DrKerfuffle"]
[Result "0-1"]
[WhiteElo "3007"]
[BlackElo "2800"]
[TimeControl "180+1"]
[EndTime "15:04:58 PDT"]
[Termination "DrKerfuffle won by resignation"]

1. e4 {[%clk 0:03:00.9]} 1... c5 {[%clk 0:02:59.7]} 2. Nf3 {[%clk 0:03:01.2]}
2... d6 {[%clk 0:03:00.1]} 3. Nc3 {[%clk 0:02:54.8]} 3... Nf6 {[%clk 0:02:59.2]}
4. h3 {[%clk 0:02:55.4]} 4... g6 {[%clk 0:02:58.2]} 5. d4 {[%clk 0:02:52.6]}
5... cxd4 {[%clk 0:02:58.1]} 6. Nxd4 {[%clk 0:02:53.5]} 6... Bg7 {[%clk
0:02:58.7]} 7. Be3 {[%clk 0:02:54.2]} 7... O-O {[%clk 0:02:59.2]} 8. Qd2 {[%clk
0:02:53]} 8... Nc6 {[%clk 0:02:59.8]} 9. g4 {[%clk 0:02:53]} 9... Nxd4 {[%clk
0:02:59.6]} 10. Bxd4 {[%clk 0:02:53.2]} 10... Be6 {[%clk 0:03:00.3]} 11. O-O-O
{[%clk 0:02:49.8]} 11... Qa5 {[%clk 0:03:00.3]} 12. a3 {[%clk 0:02:46.8]} 12...
Rfc8 {[%clk 0:03:00.7]} 13. f4 {[%clk 0:02:43.5]} 13... Rab8 {[%clk 0:02:56.6]}
14. g5 {[%clk 0:02:33.2]} 14... Nh5 {[%clk 0:02:50.2]} 15. Bxg7 {[%clk
0:02:33.5]} 15... Nxg7 {[%clk 0:02:47.3]} 16. Nb5 {[%clk 0:01:36.3]} 16... Qxd2+
{[%clk 0:02:21.7]} 17. Rxd2 {[%clk 0:01:36.3]} 17... Nh5 {[%clk 0:02:22.4]} 18.
Nxa7 {[%clk 0:01:06.1]} 18... Rc5 {[%clk 0:02:21.6]} 19. b4 {[%clk 0:00:49.6]}
19... Rc3 {[%clk 0:02:19.6]} 20. Nb5 {[%clk 0:00:46.2]} 20... Re3 {[%clk
0:02:19.2]} 21. f5 {[%clk 0:00:41.2]} 21... gxf5 {[%clk 0:02:18.7]} 22. exf5
{[%clk 0:00:42.1]} 22... Bxf5 {[%clk 0:02:19.3]} 23. Nd4 {[%clk 0:00:40.9]}
23... Bg6 {[%clk 0:02:17.2]} 24. Bd3 {[%clk 0:00:41.4]} 24... Rc8 {[%clk
0:02:11.4]} 25. Nf5 {[%clk 0:00:34.6]} 25... Re5 {[%clk 0:02:08.6]} 26. Nh6+
{[%clk 0:00:31]} 26... Kg7 {[%clk 0:02:08.9]} 27. h4 {[%clk 0:00:16]} 27... Nf4
{[%clk 0:01:42]} 28. Bxg6 {[%clk 0:00:14.4]} 28... hxg6 {[%clk 0:01:42.9]} 29.
Rf1 {[%clk 0:00:14]} 29... Re4 {[%clk 0:01:38]} 30. Kb2 {[%clk 0:00:14.1]} 30...
d5 {[%clk 0:01:36.3]} 31. Rdf2 {[%clk 0:00:12.5]} 31... e5 {[%clk 0:01:36.5]}
32. Ng4 {[%clk 0:00:12.1]} 32... Rc7 {[%clk 0:01:27.2]} 33. Nf6 {[%clk
0:00:09.2]} 33... Rec4 {[%clk 0:00:56.8]} 34. Ne8+ {[%clk 0:00:09.1]} 34... Kf8
{[%clk 0:00:57.2]} 35. Nxc7 {[%clk 0:00:10]} 35... Rxc7 {[%clk 0:00:58]} 36. Re1
{[%clk 0:00:10.9]} 36... Re7 {[%clk 0:00:58.3]} 37. Kb3 {[%clk 0:00:10]} 37...
Ke8 {[%clk 0:00:53.1]} 38. a4 {[%clk 0:00:10.6]} 38... Kd7 {[%clk 0:00:53.1]}
39. a5 {[%clk 0:00:11.2]} 39... Kd6 {[%clk 0:00:51.3]} 40. c4 {[%clk 0:00:11.3]}
40... d4 {[%clk 0:00:51.5]} 41. Re4 {[%clk 0:00:09.6]} 41... Nh5 {[%clk
0:00:29.4]} 42. Ka4 {[%clk 0:00:09.4]} 42... Ke6 {[%clk 0:00:25.2]} 43. b5
{[%clk 0:00:08.1]} 43... f5 {[%clk 0:00:25.3]} 44. gxf6 {[%clk 0:00:08.3]} 44...
Nxf6 {[%clk 0:00:26]} 45. Re1 {[%clk 0:00:09.1]} 45... e4 {[%clk 0:00:22.8]} 46.
a6 {[%clk 0:00:09.6]} 46... bxa6 {[%clk 0:00:22.7]} 47. bxa6 {[%clk 0:00:10.5]}
47... e3 {[%clk 0:00:21.9]} 48. Rb2 {[%clk 0:00:09.7]} 48... Ne4 {[%clk
0:00:21.7]} 49. Rb6+ {[%clk 0:00:08.5]} 49... Ke5 {[%clk 0:00:19.6]} 50. Rb7
{[%clk 0:00:08.8]} 50... Nc5+ {[%clk 0:00:19.1]} 51. Kb5 {[%clk 0:00:09.2]}
51... Nxb7 {[%clk 0:00:19.7]} 52. a7 {[%clk 0:00:03.6]} 52... Nd6+ {[%clk
0:00:18.8]} 53. Ka6 {[%clk 0:00:03.7]} 53... Rxa7+ {[%clk 0:00:18.5]} 54. Kxa7
{[%clk 0:00:03.9]} 54... Nxc4 {[%clk 0:00:19.4]} 55. Ka6 {[%clk 0:00:03.3]}
55... d3 {[%clk 0:00:19.8]} 56. Kb5 {[%clk 0:00:04.2]} 56... d2 {[%clk 0:00:20]}
57. Rh1 {[%clk 0:00:05]} 57... e2 {[%clk 0:00:18.7]} 58. Kxc4 {[%clk 0:00:05.9]}
58... e1=Q {[%clk 0:00:18.8]} 0-1

[Event "Late-Titled-Tuesday-Blitz-April-02-2024"]
[Site "Chess.com"]
[Date "2024.04.02"]
[Round "6"]
[White "Der_Balak_3Halak"]
[Black "kingofthenil"]
[Result "0-1"]
[WhiteElo "2429"]
[BlackElo "2788"]
[TimeControl "180+1"]
[EndTime "15:05:01 PDT"]
[Termination "kingofthenil won on time"]

1. e4 {[%clk 0:03:00.9]} 1... Nc6 {[%clk 0:02:56.6]} 2. Nf3 {[%clk 0:02:58.2]}
2... f5 {[%clk 0:02:56.1]} 3. exf5 {[%clk 0:02:55.3]} 3... d5 {[%clk 0:02:56.5]}
4. d4 {[%clk 0:02:54.1]} 4... Bxf5 {[%clk 0:02:56.2]} 5. Bd3 {[%clk 0:02:54.4]}
5... Bg4 {[%clk 0:02:46]} 6. h3 {[%clk 0:02:31.9]} 6... Bxf3 {[%clk 0:02:43.1]}
7. Qxf3 {[%clk 0:02:29.9]} 7... Nf6 {[%clk 0:02:44]} 8. c3 {[%clk 0:02:26.2]}
8... e5 {[%clk 0:02:42.1]} 9. dxe5 {[%clk 0:02:21.2]} 9... Nxe5 {[%clk 0:02:43]}
10. Qe2 {[%clk 0:02:21.6]} 10... Qe7 {[%clk 0:02:40.7]} 11. Bc2 {[%clk
0:02:12.2]} 11... O-O-O {[%clk 0:02:38.8]} 12. O-O {[%clk 0:02:04.4]} 12... Ng6
{[%clk 0:02:38.4]} 13. Qxe7 {[%clk 0:01:56.4]} 13... Bxe7 {[%clk 0:02:36.8]} 14.
Bf5+ {[%clk 0:01:56.8]} 14... Kb8 {[%clk 0:02:36.5]} 15. Re1 {[%clk 0:01:53.4]}
15... Bd6 {[%clk 0:02:35.8]} 16. Bxg6 {[%clk 0:01:46.8]} 16... hxg6 {[%clk
0:02:35.7]} 17. Bg5 {[%clk 0:01:47.7]} 17... Rde8 {[%clk 0:02:22.9]} 18. Nd2
{[%clk 0:01:44.7]} 18... Nd7 {[%clk 0:02:17.6]} 19. Nf3 {[%clk 0:01:35.1]} 19...
Nc5 {[%clk 0:02:17.4]} 20. Be3 {[%clk 0:01:08.1]} 20... Ne4 {[%clk 0:02:07.6]}
21. Nd2 {[%clk 0:00:58.5]} 21... c6 {[%clk 0:02:01]} 22. Nxe4 {[%clk 0:00:49.3]}
22... Rxe4 {[%clk 0:02:01.9]} 23. Bd4 {[%clk 0:00:49.5]} 23... Rhe8 {[%clk
0:02:00.5]} 24. Kf1 {[%clk 0:00:48]} 24... Bf8 {[%clk 0:01:49]} 25. Rxe4 {[%clk
0:00:41.8]} 25... Rxe4 {[%clk 0:01:49.9]} 26. Re1 {[%clk 0:00:41.4]} 26... Rxe1+
{[%clk 0:01:50.5]} 27. Kxe1 {[%clk 0:00:42.3]} 27... c5 {[%clk 0:01:50.7]} 28.
Be5+ {[%clk 0:00:40.9]} 28... Kc8 {[%clk 0:01:51.4]} 29. Kd2 {[%clk 0:00:34.9]}
29... Kd7 {[%clk 0:01:52.3]} 30. f4 {[%clk 0:00:30.9]} 30... Bd6 {[%clk
0:01:50.8]} 31. Bxd6 {[%clk 0:00:28.5]} 31... Kxd6 {[%clk 0:01:51.3]} 32. Ke3
{[%clk 0:00:27.3]} 32... Ke6 {[%clk 0:01:47.9]} 33. g4 {[%clk 0:00:27.4]} 33...
Kf6 {[%clk 0:01:46.1]} 34. h4 {[%clk 0:00:26.8]} 34... Ke6 {[%clk 0:01:42.4]}
35. Kd3 {[%clk 0:00:18.4]} 35... Kd6 {[%clk 0:01:39]} 36. Ke3 {[%clk 0:00:18.8]}
36... b6 {[%clk 0:01:35.1]} 37. Ke2 {[%clk 0:00:19.4]} 37... Ke6 {[%clk
0:00:28.9]} 38. Kd3 {[%clk 0:00:18.1]} 38... Kf6 {[%clk 0:00:29.1]} 39. a4
{[%clk 0:00:18.4]} 39... Ke6 {[%clk 0:00:28.4]} 40. b4 {[%clk 0:00:19]} 40...
Kd6 {[%clk 0:00:28.4]} 41. a5 {[%clk 0:00:15.3]} 41... bxa5 {[%clk 0:00:25]} 42.
bxa5 {[%clk 0:00:16.2]} 42... a6 {[%clk 0:00:21.7]} 43. Ke3 {[%clk 0:00:16.2]}
43... Ke7 {[%clk 0:00:20.5]} 44. Kf3 {[%clk 0:00:10.6]} 44... Kf6 {[%clk
0:00:20.5]} 45. Ke3 {[%clk 0:00:10.9]} 45... Ke6 {[%clk 0:00:20.1]} 46. Kd3
{[%clk 0:00:11.2]} 46... Kd6 {[%clk 0:00:20.3]} 47. Kc2 {[%clk 0:00:08.5]} 47...
Kc6 {[%clk 0:00:17.8]} 48. Kd3 {[%clk 0:00:07.4]} 48... Kd7 {[%clk 0:00:08.1]}
49. Ke2 {[%clk 0:00:07.6]} 49... Ke7 {[%clk 0:00:07.4]} 50. Kf3 {[%clk
0:00:08.2]} 50... Ke6 {[%clk 0:00:07.4]} 51. Ke3 {[%clk 0:00:05.4]} 51... Kd6
{[%clk 0:00:06.5]} 52. Kd3 {[%clk 0:00:05.7]} 52... Kc6 {[%clk 0:00:06.4]} 53.
Kd2 {[%clk 0:00:05.8]} 53... d4 {[%clk 0:00:02]} 54. cxd4 {[%clk 0:00:05.3]}
54... cxd4 {[%clk 0:00:02.9]} 55. Kd3 {[%clk 0:00:06.2]} 55... Kd5 {[%clk
0:00:02]} 56. g5 {[%clk 0:00:01.8]} 56... Ke6 {[%clk 0:00:01.3]} 57. Kxd4 {[%clk
0:00:01.6]} 57... Kf5 {[%clk 0:00:02.2]} 0-1

[Event "Late-Titled-Tuesday-Blitz-April-02-2024"]
[Site "Chess.com"]
[Date "2024.04.02"]
[Round "6"]
[White "FairChess_on_YouTube"]
[Black "bascheyaro"]
[Result "1-0"]
[WhiteElo "3053"]
[BlackElo "2823"]
[TimeControl "180+1"]
[EndTime "15:05:02 PDT"]
[Termination "FairChess_on_YouTube won by resignation"]

1. d4 {[%clk 0:03:00.9]} 1... d5 {[%clk 0:03:00]} 2. c4 {[%clk 0:03:01.5]} 2...
c6 {[%clk 0:03:00.5]} 3. Nf3 {[%clk 0:03:00.9]} 3... Nf6 {[%clk 0:03:00.9]} 4.
Qc2 {[%clk 0:03:00.4]} 4... g6 {[%clk 0:02:59.9]} 5. cxd5 {[%clk 0:03:00.7]}
5... cxd5 {[%clk 0:03:00.1]} 6. Bf4 {[%clk 0:03:01.1]} 6... Nc6 {[%clk
0:03:00.5]} 7. Nc3 {[%clk 0:03:01.1]} 7... Bg7 {[%clk 0:02:57.3]} 8. e3 {[%clk
0:03:01.5]} 8... O-O {[%clk 0:02:57.3]} 9. h3 {[%clk 0:03:01.9]} 9... Bf5 {[%clk
0:02:51.6]} 10. Qb3 {[%clk 0:03:02]} 10... Qb6 {[%clk 0:02:47]} 11. Qxb6 {[%clk
0:03:01.6]} 11... axb6 {[%clk 0:02:47.3]} 12. Rc1 {[%clk 0:03:00.3]} 12... Rfc8
{[%clk 0:02:44.2]} 13. g4 {[%clk 0:02:47.9]} 13... Be4 {[%clk 0:02:42.8]} 14.
Be2 {[%clk 0:02:46.5]} 14... Nb4 {[%clk 0:02:40.3]} 15. Kd2 {[%clk 0:02:37.1]}
15... e6 {[%clk 0:02:10.1]} 16. a3 {[%clk 0:02:36.8]} 16... Nc6 {[%clk
0:02:09.8]} 17. g5 {[%clk 0:02:27.8]} 17... Nd7 {[%clk 0:01:58.6]} 18. Kd1
{[%clk 0:01:49.8]} 18... Bxf3 {[%clk 0:01:20.5]} 19. Bxf3 {[%clk 0:01:50.7]}
19... Na5 {[%clk 0:01:20.9]} 20. Kc2 {[%clk 0:01:36.6]} 20... Bf8 {[%clk
0:01:17.9]} 21. e4 {[%clk 0:01:29.4]} 21... dxe4 {[%clk 0:01:06.3]} 22. Bxe4
{[%clk 0:01:30.3]} 22... b5 {[%clk 0:01:06.9]} 23. Kd3 {[%clk 0:01:27.3]} 23...
b4 {[%clk 0:01:06.2]} 24. axb4 {[%clk 0:01:24.8]} 24... Bxb4 {[%clk 0:01:06.4]}
25. Nb5 {[%clk 0:01:25.4]} 25... Rxc1 {[%clk 0:00:59.3]} 26. Rxc1 {[%clk
0:01:24.8]} 26... Nb6 {[%clk 0:00:59.7]} 27. Be5 {[%clk 0:01:08.3]} 27... Be7
{[%clk 0:00:54.1]} 28. f4 {[%clk 0:01:06]} 28... Kf8 {[%clk 0:00:40.5]} 29. Ra1
{[%clk 0:01:05.1]} 29... Nc6 {[%clk 0:00:37.9]} 30. Rxa8+ {[%clk 0:01:04]} 30...
Nxa8 {[%clk 0:00:38.8]} 31. Bxc6 {[%clk 0:01:03.3]} 31... bxc6 {[%clk 0:00:39]}
32. Na7 {[%clk 0:01:04]} 32... c5 {[%clk 0:00:39.4]} 33. Nc6 {[%clk 0:00:59]}
33... cxd4 {[%clk 0:00:34.7]} 34. Kxd4 {[%clk 0:00:55]} 34... Nb6 {[%clk
0:00:33.1]} 35. b4 {[%clk 0:00:52.5]} 35... Nd5 {[%clk 0:00:24.9]} 36. b5 {[%clk
0:00:50.4]} 36... Ba3 {[%clk 0:00:24.7]} 37. Kc4 {[%clk 0:00:47.9]} 37... Ke8
{[%clk 0:00:24.7]} 38. Kb3 {[%clk 0:00:44.3]} 38... Bc5 {[%clk 0:00:24]} 39. Kc4
{[%clk 0:00:41]} 39... Be3 {[%clk 0:00:21.8]} 40. Nb4 {[%clk 0:00:41.6]} 40...
Nxf4 {[%clk 0:00:18.3]} 41. b6 {[%clk 0:00:41.3]} 41... Bxb6 {[%clk 0:00:05.6]}
42. Bxf4 {[%clk 0:00:40.8]} 42... Bd8 {[%clk 0:00:05.8]} 43. Nc6 {[%clk
0:00:39.5]} 43... Bb6 {[%clk 0:00:06.1]} 44. Ne5 {[%clk 0:00:37.9]} 44... Bd8
{[%clk 0:00:04.4]} 45. Ng4 {[%clk 0:00:38]} 45... Be7 {[%clk 0:00:03.3]} 46.
Nf6+ {[%clk 0:00:36.1]} 46... Kf8 {[%clk 0:00:03.9]} 47. Be5 {[%clk 0:00:32.3]}
47... h5 {[%clk 0:00:01.4]} 48. gxh6 {[%clk 0:00:31.6]} 48... Bd8 {[%clk
0:00:02.3]} 49. Kd3 {[%clk 0:00:24.7]} 49... Be7 {[%clk 0:00:02.6]} 50. h7
{[%clk 0:00:22.1]} 50... Kg7 {[%clk 0:00:02.7]} 51. Nd5+ {[%clk 0:00:22.2]}
51... Kxh7 {[%clk 0:00:03.6]} 52. Nxe7 {[%clk 0:00:22.2]} 52... g5 {[%clk
0:00:04.2]} 53. Bf6 {[%clk 0:00:18.1]} 53... Kh6 {[%clk 0:00:04.6]} 54. Ke4
{[%clk 0:00:18.8]} 54... Kh5 {[%clk 0:00:05.1]} 55. Kf3 {[%clk 0:00:19.4]} 55...
Kh4 {[%clk 0:00:05.6]} 56. Kg2 {[%clk 0:00:19.8]} 56... Kh5 {[%clk 0:00:05.4]}
57. Kg3 {[%clk 0:00:19.9]} 57... e5 {[%clk 0:00:06.1]} 58. Bxe5 {[%clk
0:00:16.9]} 58... f5 {[%clk 0:00:04.2]} 59. Nxf5 {[%clk 0:00:16.5]} 1-0

[Event "Late-Titled-Tuesday-Blitz-April-02-2024"]
[Site "Chess.com"]
[Date "2024.04.02"]
[Round "6"]
[White "XDPS"]
[Black "Zavgorodniy_Sergiy"]
[Result "1-0"]
[WhiteElo "2916"]
[BlackElo "2640"]
[TimeControl "180+1"]
[EndTime "15:05:02 PDT"]
[Termination "XDPS won by resignation"]

1. d4 {[%clk 0:02:58.6]} 1... d5 {[%clk 0:02:59.9]} 2. Bf4 {[%clk 0:02:58.3]}
2... Nf6 {[%clk 0:02:59.8]} 3. e3 {[%clk 0:02:58.8]} 3... e6 {[%clk 0:03:00.3]}
4. Nd2 {[%clk 0:02:59]} 4... c5 {[%clk 0:03:00.6]} 5. Ngf3 {[%clk 0:02:58.2]}
5... Bd6 {[%clk 0:03:00.8]} 6. c3 {[%clk 0:02:58]} 6... Qc7 {[%clk 0:03:00.7]}
7. Bxd6 {[%clk 0:02:53.2]} 7... Qxd6 {[%clk 0:03:01.6]} 8. Ne5 {[%clk
0:02:53.5]} 8... O-O {[%clk 0:03:01.7]} 9. Bd3 {[%clk 0:02:53.3]} 9... b6 {[%clk
0:03:01.1]} 10. f4 {[%clk 0:02:50]} 10... Ba6 {[%clk 0:03:00.8]} 11. Bc2 {[%clk
0:02:50.6]} 11... Nc6 {[%clk 0:02:59.7]} 12. g4 {[%clk 0:02:51.1]} 12... Rac8
{[%clk 0:02:52.3]} 13. g5 {[%clk 0:02:51.2]} 13... Nd7 {[%clk 0:02:52.2]} 14.
Ndf3 {[%clk 0:02:46.3]} 14... cxd4 {[%clk 0:02:46.8]} 15. exd4 {[%clk
0:02:46.3]} 15... f5 {[%clk 0:02:07]} 16. gxf6 {[%clk 0:02:45.2]} 16... Rxf6
{[%clk 0:01:58.8]} 17. Bxh7+ {[%clk 0:02:29.1]} 17... Kh8 {[%clk 0:01:57.1]} 18.
Bd3 {[%clk 0:02:20.1]} 18... Bxd3 {[%clk 0:01:55.2]} 19. Qxd3 {[%clk 0:02:18.5]}
19... Nf8 {[%clk 0:01:50.9]} 20. Ng5 {[%clk 0:02:17.3]} 20... Kg8 {[%clk
0:01:48.6]} 21. O-O {[%clk 0:02:07.2]} 21... Ne7 {[%clk 0:01:45.4]} 22. Kh1
{[%clk 0:01:59.5]} 22... Nf5 {[%clk 0:01:45.4]} 23. Rg1 {[%clk 0:01:59.3]} 23...
Rh6 {[%clk 0:01:42.7]} 24. Ngf7 {[%clk 0:01:57.6]} 24... Qe7 {[%clk 0:01:38.3]}
25. Nxh6+ {[%clk 0:01:55.8]} 25... Nxh6 {[%clk 0:01:39.2]} 26. Rg5 {[%clk
0:01:56.4]} 26... Nf5 {[%clk 0:01:38.2]} 27. Rag1 {[%clk 0:01:55.6]} 27... Rc7
{[%clk 0:01:38.5]} 28. Qh3 {[%clk 0:01:52.1]} 28... Qf6 {[%clk 0:01:28]} 29. Rh5
{[%clk 0:01:51.9]} 29... g6 {[%clk 0:01:24.3]} 30. Rhg5 {[%clk 0:01:32.9]} 30...
Kg7 {[%clk 0:01:22.1]} 31. Qh5 {[%clk 0:01:21.5]} 31... Ne7 {[%clk 0:01:22]} 32.
Qh4 {[%clk 0:00:57.9]} 32... Nf5 {[%clk 0:01:20.6]} 33. Qh3 {[%clk 0:00:45.5]}
33... Ne7 {[%clk 0:01:10.8]} 34. R1g4 {[%clk 0:00:44.8]} 34... b5 {[%clk
0:01:05.4]} 35. Qh5 {[%clk 0:00:43.7]} 35... a5 {[%clk 0:00:59.4]} 36. Rh4
{[%clk 0:00:43.2]} 36... Kg8 {[%clk 0:00:47.6]} 37. Ng4 {[%clk 0:00:29.2]} 37...
Qg7 {[%clk 0:00:30.2]} 38. Nh6+ {[%clk 0:00:29.2]} 38... Kh7 {[%clk 0:00:30.6]}
39. Qe2 {[%clk 0:00:28.3]} 39... Qxh6 {[%clk 0:00:22.7]} 40. Rxh6+ {[%clk
0:00:28.2]} 40... Kxh6 {[%clk 0:00:23.6]} 41. Qe5 {[%clk 0:00:26.8]} 41... Rd7
{[%clk 0:00:23.5]} 42. Rg3 {[%clk 0:00:23.6]} 42... Kh7 {[%clk 0:00:22]} 43.
Rh3+ {[%clk 0:00:23.4]} 43... Kg8 {[%clk 0:00:22.4]} 44. Rh8+ {[%clk 0:00:19.3]}
44... Kf7 {[%clk 0:00:22.7]} 45. Rxf8+ {[%clk 0:00:19.4]} 45... Kxf8 {[%clk
0:00:22.2]} 46. Qxe6 {[%clk 0:00:19.8]} 46... Rc7 {[%clk 0:00:20.8]} 47. Qb6
{[%clk 0:00:19.2]} 47... Rc6 {[%clk 0:00:17.4]} 48. Qxb5 {[%clk 0:00:19.7]}
48... Rf6 {[%clk 0:00:17.5]} 49. Qxa5 {[%clk 0:00:17]} 49... Rxf4 {[%clk
0:00:17.5]} 50. a4 {[%clk 0:00:16.5]} 50... Kf7 {[%clk 0:00:16.8]} 51. Qc7
{[%clk 0:00:15.6]} 51... Rf2 {[%clk 0:00:15.1]} 52. Qb7 {[%clk 0:00:14.2]} 52...
Ke6 {[%clk 0:00:13.9]} 53. Kg1 {[%clk 0:00:14.7]} 53... Rc2 {[%clk 0:00:13.3]}
54. a5 {[%clk 0:00:15.1]} 54... Nf5 {[%clk 0:00:11.3]} 55. Qc6+ {[%clk
0:00:15.3]} 55... Ke7 {[%clk 0:00:11.5]} 56. Qxd5 {[%clk 0:00:14.4]} 56... Rxb2
{[%clk 0:00:07.5]} 57. Qe5+ {[%clk 0:00:12.8]} 57... Kf7 {[%clk 0:00:07.2]} 58.
a6 {[%clk 0:00:12.5]} 58... Ra2 {[%clk 0:00:05.8]} 59. Qd5+ {[%clk 0:00:12.6]}
59... Kf6 {[%clk 0:00:05.1]} 60. Qxa2 {[%clk 0:00:13.5]} 1-0